bitfinex-derivatives/quotes_ETHF0:USTF0_20250320
["timestamp","ask_amount","ask_price","bid_price","bid_amount"]
[1742437951433,1.3097,2026.4,2026.3,2.80980024]
[1742437952133,2.0991,2026.4,2026.3,2.80980024]
[1742437952534,2.0991,2026.4,2026.3,0.64096024]
[1742437953036,0.78948,2026.2,2026.1,5.2699]
[1742437953340,0.78948,2026.2,2026.1,3.2078]
[1742437953537,0.78948,2026.2,2026.1,3.84892423]
[1742437953731,3.36448,2026.2,2026.1,3.2078]
[1742437954937,3.36448,2026.2,2026.0,0.00740649]
[1742437954938,0.78952,2026.1,2026.0,0.00740649]
[1742437955133,5.41382,2026.1,2026.0,0.00740649]
[1742437970448,2.16182,2026.1,2026.0,0.00740649]
[1742437970642,5.41382,2026.1,2026.0,0.00740649]
[1742437972346,5.41382,2026.1,2026.0,1.31750649]
[1742437973047,5.41382,2026.1,2026.0,1.96840649]
[1742437975456,2.16182,2026.1,2026.0,1.96840649]
[1742437976255,2.16182,2026.1,2026.0,2.75795649]
[1742437977050,2.16182,2026.1,2026.0,1.96840649]
[1742437978858,2.16182,2026.1,2026.0,1.31750649]
[1742437979457,2.16182,2026.1,2026.0,1.95798442]
[1742437980155,2.16182,2026.1,2026.0,2.10705649]
[1742437980360,2.16182,2026.1,2026.0,1.31750649]
[1742437980758,2.16182,2026.1,2026.0,2.10705649]
[1742437980958,2.16182,2026.1,2026.0,1.31750649]
[1742437981750,2.16182,2026.1,2026.0,2.74815721]
[1742437982361,2.16182,2026.1,2026.0,1.95860721]
[1742437983164,2.16182,2026.1,2026.0,2.74815721]
[1742437984565,5.18141,2026.3,2026.0,2.74815721]
[1742437984566,0.78945,2026.3,2026.2,0.78948]
[1742437984761,5.43933,2026.4,2026.3,0.78944]
[1742437985061,2.18733,2026.4,2026.3,0.78944]
[1742437985263,3.2078,2026.6,2026.5,0.78936]
[1742437985453,0.78936,2026.5,2026.4,2.08487]
[1742437985854,3.2078,2026.6,2026.4,2.08487]
[1742437985855,3.99716,2026.6,2026.5,0.78936]
[1742437986061,2.18722,2026.7,2026.6,0.78932]
[1742437986259,2.18722,2026.7,2026.6,1.45092]
[1742437986464,2.18722,2026.7,2026.6,2.74642]
[1742437986761,2.18722,2026.7,2026.6,1.9571]
[1742437987159,2.18722,2026.7,2026.6,2.59820072]
[1742437988365,2.18722,2026.7,2026.6,1.9571]
[1742437992470,0.78932,2026.6,2026.5,0.6737]
[1742437992765,2.78542,2026.6,2026.5,1.958]
[1742437994660,2.78542,2026.6,2026.5,2.74736]
[1742437994861,2.10322,2026.6,2026.5,2.74736]
[1742437995270,2.10322,2026.6,2026.5,1.958]
[1742437995571,0.7894,2026.4,2026.3,0.6819]
[1742437995869,0.7894,2026.4,2026.3,1.9785]
[1742437996271,2.1714,2026.4,2026.3,1.9785]
[1742437997371,0.78944,2026.3,2026.2,3.8943]
[1742437997563,2.14244,2026.3,2026.2,6.07828]
[1742437998764,2.14244,2026.3,2026.2,4.6023]
[1742437999069,2.14244,2026.3,2026.2,3.2078]
[1742437999863,1.353,2026.3,2026.0,0.00740649]
[1742438000174,0.78952,2026.1,2026.0,0.00740649]
[1742438000678,5.97632,2026.1,2026.0,0.00740649]
[1742438000971,11.93632,2026.1,2026.0,0.00740649]
[1742438003870,11.93632,2026.1,2026.0,1.41320649]
[1742438005170,7.286,2026.1,2026.0,2.20275649]
[1742438005369,1.326,2026.1,2026.0,5.41055649]
[1742438006073,3.251,2026.2,2026.1,0.78952]
[1742438006275,1.3987,2026.3,2026.2,0.78948]
[1742438006569,4.67755,2026.6,2026.4,0.78938]
[1742438006767,4.67755,2026.6,2026.5,2.6344]
[1742438006768,2.82525,2026.6,2026.5,2.6344]
[1742438006968,0.78935,2026.6,2026.5,2.6344]
[1742438010181,0.78935,2026.6,2026.5,3.42376]
[1742438010477,3.251,2026.7,2026.6,0.78932]
[1742438010681,4.04029,2026.7,2026.6,1.3327]
[1742438011465,4.67644,2026.8,2026.7,0.78928]
[1742438011664,0.78928,2026.7,2026.6,2.12201]
[1742438012575,0.78928,2026.7,2026.6,1.3327]
[1742438012971,0.78932,2026.6,2026.5,1.3443]
[1742438013173,3.8872,2026.8,2026.4,3.2078]
[1742438013174,0.78936,2026.5,2026.4,3.2078]
[1742438013578,0.78936,2026.5,2026.4,4.5617]
[1742438014171,0.78936,2026.5,2026.4,5.2303]
[1742438014776,3.25,2026.6,2026.4,5.2303]
[1742438014984,0.78928,2026.7,2026.5,1.9907]
[1742438015277,0.78928,2026.7,2026.6,1.3311]
[1742438015879,3.25,2026.8,2026.6,1.3311]
[1742438016080,3.25,2026.8,2026.7,3.99708]
[1742438016378,3.25,2026.8,2026.7,4.66568]
[1742438016571,4.03922,2026.9,2026.7,4.66568]
[1742438016766,4.03922,2026.9,2026.8,1.3311]
[1742438017478,5.43222,2026.9,2026.8,1.3311]
[1742438018478,0.78924,2026.8,2026.7,0.6686]
[1742438018671,2.16854,2026.8,2026.7,2.0538]
[1742438020681,2.16854,2026.8,2026.7,2.84308]
[1742438021373,1.3793,2026.8,2026.7,2.84308]
[1742438021578,4.6953,2027.0,2026.9,0.7892]
[1742438021881,4.0382,2027.0,2026.9,0.7892]
[1742438022279,4.0382,2027.0,2026.9,0.6806]
[1742438022882,5.3575,2027.0,2026.9,2.0102]
[1742438023482,5.3575,2027.0,2026.9,2.7994]
[1742438024282,0.00740649,2027.1,2027.0,0.78917]
[1742438024483,0.00740649,2027.1,2027.0,2.87347]
[1742438026983,0.79653649,2027.1,2027.0,2.87347]
[1742438027183,0.79653649,2027.1,2027.0,2.0843]
[1742438027579,0.00740649,2027.1,2027.0,2.87347]
[1742438027775,1.40670649,2027.1,2027.0,2.87347]
[1742438029988,2.19583649,2027.1,2027.0,2.87347]
[1742438030680,1.40670649,2027.1,2027.0,2.87347]
[1742438031487,2.19583649,2027.1,2027.0,2.87347]
[1742438031890,1.40670649,2027.1,2027.0,2.87347]
[1742438034191,0.00740649,2027.1,2027.0,2.87347]
[1742438035994,2.19933649,2027.1,2027.0,2.17157]
[1742438038396,0.78917,2027.0,2026.9,4.5637]
[1742438038692,2.80127,2027.0,2026.9,3.8884]
[1742438038891,2.80127,2027.0,2026.9,3.2078]
[1742438040383,2.11207,2027.0,2026.9,3.997]
[1742438040588,2.11207,2027.0,2026.9,3.8813]
[1742438040792,2.11207,2027.0,2026.9,3.2078]
[1742438043796,2.11207,2027.0,2026.9,4.5163]
[1742438044001,2.11207,2027.0,2026.9,5.3055]
[1742438044387,2.11207,2027.0,2026.9,4.5163]
[1742438046298,2.11207,2027.0,2026.9,3.2078]
[1742438046499,0.78928,2026.7,2026.6,3.884]
[1742438047202,0.78928,2026.7,2026.6,4.52472268]
[1742438047397,2.12358,2026.7,2026.6,2.59352268]
[1742438049704,2.12358,2026.7,2026.6,1.9528]
[1742438050507,2.12358,2026.7,2026.6,1.2766]
[1742438050703,2.12358,2026.7,2026.4,1.46507]
[1742438050704,1.3343,2026.7,2026.4,1.46507]
[1742438050902,2.85692,2026.6,2026.5,2.09226]
[1742438051905,1.3923,2026.6,2026.5,2.09226]
[1742438052303,1.3923,2026.6,2026.5,2.73252466]
[1742438053007,6.4558,2026.9,2026.5,1.94316466]
[1742438053008,3.2078,2026.9,2026.5,1.94316466]
[1742438053200,2.16334,2026.8,2026.7,0.78925]
[1742438053402,2.16334,2026.8,2026.7,2.09705]
[1742438054500,2.16334,2026.8,2026.7,1.3078]
[1742438055209,2.16334,2026.8,2026.7,2.09708]
[1742438055415,2.16334,2026.8,2026.7,1.3078]
[1742438057211,2.16334,2026.8,2026.7,2.09708]
[1742438057608,2.16334,2026.8,2026.7,1.3078]
[1742438057809,0.78928,2026.7,2026.6,4.69299]
[1742438058010,2.77208,2026.7,2026.6,6.07899]
[1742438058209,2.77208,2026.7,2026.6,5.2897]
[1742438058611,2.77208,2026.7,2026.6,5.93017272]
[1742438059211,2.77208,2026.7,2026.6,6.71949272]
[1742438059711,2.77208,2026.7,2026.6,3.84827272]
[1742438059907,5.97988,2026.7,2026.6,0.64047272]
[1742438060306,6.63808,2026.7,2026.6,0.64047272]
[1742438060616,5.2298,2026.7,2026.3,1.386]
[1742438060815,2.08906,2026.6,2026.4,0.78938]
[1742438061117,0.78936,2026.6,2026.5,1.3873]
[1742438061314,0.78936,2026.6,2026.5,2.85006]
[1742438061505,0.78936,2026.6,2026.5,2.0607]
[1742438061707,3.247,2026.8,2026.6,0.78932]
[1742438061915,4.03624,2026.8,2026.7,2.0631]
[1742438063715,0.00740649,2027.1,2026.7,5.2709]
[1742438063921,0.7892,2026.9,2026.8,2.85022]
[1742438064311,0.7892,2026.9,2026.8,3.49067399]
[1742438065316,0.7892,2026.9,2026.8,2.04145399]
[1742438065906,0.78924,2026.8,2026.7,0.6758]
[1742438066106,0.78924,2026.8,2026.4,3.2078]
[1742438066107,0.78936,2026.5,2026.4,3.2078]
[1742438066313,0.78936,2026.5,2026.4,4.6088]
[1742438066819,0.78933,2026.6,2026.5,0.78934]
[1742438067014,0.78931,2026.7,2026.6,0.78932]
[1742438067221,4.03627,2026.8,2026.7,0.78928]
[1742438067424,0.78927,2026.8,2026.7,2.84618]
[1742438067823,0.78927,2026.8,2026.7,3.48745463]
[1742438068322,0.78927,2026.8,2026.7,2.69817463]
[1742438069219,4.03627,2026.8,2026.7,0.64127463]
[1742438069623,0.78931,2026.7,2026.6,0.78932]
[1742438070112,0.78929,2026.7,2026.6,0.7893]
[1742438070523,0.78929,2026.7,2026.6,1.43078484]
[1742438071125,0.78927,2026.8,2026.7,0.78927]
[1742438071528,0.78927,2026.8,2026.7,1.43075484]
[1742438072329,0.00740649,2027.1,2027.0,0.78917]
[1742438072529,0.78917,2027.0,2026.9,0.78918]
[1742438073434,0.78917,2027.0,2026.9,1.43066484]
[1742438074234,0.00740649,2027.1,2027.0,0.78917]
[1742438074235,0.79655649,2027.1,2027.0,0.78917]
[1742438074426,0.78917,2027.0,2026.9,1.43066484]
[1742438074626,0.78917,2027.0,2026.9,0.78918]
[1742438075130,0.00740649,2027.1,2027.0,0.78917]
[1742438075333,5.96,2027.4,2027.3,0.78905]
[1742438075534,3.247,2027.6,2027.5,0.78897]
[1742438076030,1.2991,2027.7,2027.4,0.658]
[1742438076227,1.43681,2027.7,2027.4,0.658]
[1742438076432,1.43681,2027.7,2027.5,0.78894]
[1742438076637,0.78893,2027.6,2027.5,0.78894]
[1742438077340,0.78896,2027.6,2027.5,0.78897]
[1742438077635,2.18326,2027.6,2027.5,0.78897]
[1742438078038,0.00740649,2027.8,2027.7,0.78889]
[1742438078331,1.40170649,2027.8,2027.7,0.78889]
[1742438079331,0.00740649,2027.8,2027.7,0.78889]
[1742438079736,0.00740649,2027.8,2027.7,1.42719708]
[1742438080133,3.99637,2028.6,2027.7,3.13830708]
[1742438080330,3.99637,2028.6,2028.2,0.7887]
[1742438080331,1.2743,2028.3,2028.2,0.7887]
[1742438080636,6.4538,2028.6,2028.4,0.78861]
[1742438080831,6.4538,2028.6,2028.2,0.6672]
[1742438080832,3.2078,2028.6,2028.5,0.78858]
[1742438081035,1.2743,2028.8,2028.7,0.7885]
[1742438081233,0.698,2029.2,2028.7,3.2078]
[1742438081435,0.00740649,2028.8,2028.7,3.9963]
[1742438083528,0.00740649,2028.8,2028.7,7.2413]
[1742438089948,0.00740649,2028.8,2028.7,3.9963]
[1742438090146,0.00740649,2028.8,2028.7,7.2403]
[1742438090537,0.00740649,2028.8,2028.7,3.9963]
[1742438090741,0.00740649,2028.8,2028.7,7.2403]
[1742438091638,0.00740649,2028.8,2028.7,3.9963]
[1742438092043,0.00740649,2028.8,2028.7,7.2403]
[1742438092244,0.00740649,2028.8,2028.7,3.9963]
[1742438093043,1.32230649,2028.8,2028.7,3.9963]
[1742438094040,1.32230649,2028.8,2028.7,5.3464]
[1742438096448,0.00740649,2028.8,2028.7,5.3464]
[1742438097246,3.2078,2029.3,2029.2,0.78831]
[1742438097447,0.78832,2029.2,2029.0,3.99616]
[1742438098049,0.78835,2029.1,2029.0,3.2078]
[1742438098646,0.78835,2029.1,2029.0,3.99619]
[1742438098840,0.78835,2029.1,2029.0,3.2078]
[1742438099046,0.78845,2028.9,2028.7,8.63388]
[1742438099253,0.6607,2029.1,2028.7,8.63388]
[1742438099254,0.78847,2028.8,2028.7,8.63388]
[1742438099950,1.38,2028.9,2028.7,8.63388]
[1742438100251,0.78847,2028.8,2028.7,8.63388]
[1742438100557,0.78847,2028.8,2028.7,3.2078]
[1742438101453,0.78847,2028.8,2028.7,3.99627]
[1742438102449,1.38,2028.9,2028.8,0.78847]
[1742438102658,0.78847,2028.8,2028.7,3.2078]
[1742438102856,2.16843,2028.9,2028.8,0.78847]
[1742438103154,1.38,2028.9,2028.8,0.78847]
[1742438103464,1.38,2028.9,2028.8,1.47297]
[1742438103654,1.38,2028.9,2028.8,2.81317]
[1742438105757,1.38,2028.9,2028.3,3.21520649]
[1742438105758,0.78862,2028.4,2028.3,3.21520649]
[1742438106458,2.08372,2028.4,2028.3,0.00740649]
[1742438111262,0.78874,2028.1,2028.0,3.2078]
[1742438112654,0.78881,2027.9,2027.8,0.00740649]
[1742438112858,0.78881,2027.9,2027.7,3.18558053]
[1742438112859,0.78885,2027.8,2027.7,3.18558053]
[1742438113060,2.74615,2027.8,2027.7,3.18558053]
[1742438113963,0.78897,2027.5,2027.4,3.2078]
[1742438116366,2.16077,2027.5,2027.4,3.2078]
[1742438116964,0.78891,2027.7,2027.4,4.5867]
[1742438117165,0.78886,2027.8,2027.6,0.78889]
[1742438117463,1.3718,2027.7,2027.6,0.78889]
[1742438117661,1.3718,2027.7,2027.6,44.83289]
[1742438117856,0.78882,2027.9,2027.7,0.78886]
[1742438118061,0.78885,2027.8,2027.6,44.7152]
[1742438118470,2.16063,2027.9,2027.7,0.78887]
[1742438118865,1.3753,2027.8,2027.7,0.78887]
[1742438119271,2.16417,2027.8,2027.6,44.7152]
[1742438119470,1.3753,2027.8,2027.7,0.78889]
[1742438120065,0.6959,2028.2,2027.7,0.78889]
[1742438120066,3.9399,2028.2,2027.8,1.97214]
[1742438120265,0.00740649,2028.3,2028.1,0.78872]
[1742438120470,2.17138649,2028.3,2028.1,0.78872]
[1742438120672,2.17139649,2028.3,2028.1,0.78872]
[1742438120966,0.7887,2028.2,2028.0,3.99655]
[1742438121159,0.78874,2028.1,2028.0,3.99655]
[1742438121564,2.16403,2028.2,2028.0,3.99655]
[1742438121863,0.78874,2028.1,2028.0,3.99655]
[1742438122566,0.78874,2028.1,2028.0,3.2078]
[1742438123563,2.17934,2028.1,2028.0,3.2078]
[1742438124970,1.3906,2028.1,2028.0,3.99658]
[1742438125170,2.17934,2028.1,2028.0,3.99658]
[1742438125368,2.17934,2028.1,2028.0,3.2078]
[1742438125764,2.17934,2028.1,2028.0,3.99658]
[1742438125964,2.17934,2028.1,2028.0,3.2078]
[1742438126165,0.78871,2028.2,2028.1,0.78872]
[1742438126365,0.78871,2028.2,2028.1,0.6624]
[1742438127165,0.00740649,2028.3,2028.2,0.7887]
[1742438127368,0.00740649,2028.3,2028.2,1.4313]
[1742438127570,0.00740649,2028.3,2028.2,5.9851]
[1742438127975,0.6492,2028.9,2028.8,0.78847]
[1742438128164,1.3169,2029.0,2028.9,0.78843]
[1742438128364,0.78843,2028.9,2028.8,0.78845]
[1742438128773,1.3169,2029.0,2028.9,0.78843]
[1742438129171,2.10529,2029.0,2028.9,0.78843]
[1742438129479,2.10529,2029.0,2028.9,1.3098]
[1742438129976,2.10529,2029.0,2028.9,2.09823]
[1742438130176,2.10529,2029.0,2028.9,1.3098]
[1742438130672,0.00740649,2029.2,2028.9,1.3098]
[1742438130976,0.00740649,2029.2,2029.1,0.78835]
[1742438131178,0.78817,2029.6,2029.1,2.08955]
[1742438131374,1.3514,2029.6,2029.5,0.78819]
[1742438131573,1.3514,2029.6,2029.3,3.2078]
[1742438131882,2.13957,2029.6,2029.5,0.78819]
[1742438132072,2.13957,2029.6,2029.4,2.0894]
[1742438132475,1.3514,2029.6,2029.5,0.78819]
[1742438132673,1.3514,2029.6,2029.5,2.08939]
[1742438132871,1.3514,2029.6,2029.3,3.2078]
[1742438133179,0.78823,2029.4,2029.3,4.509]
[1742438133380,0.78823,2029.4,2029.3,3.2078]
[1742438133578,12.4108,2029.5,2029.0,4.5236]
[1742438133781,12.4108,2029.5,2029.0,3.2078]
[1742438133782,0.78835,2029.1,2029.0,3.2078]
[1742438134080,0.78843,2028.9,2028.8,2.10425]
[1742438134577,12.4108,2029.5,2028.8,6.52991]
[1742438134776,0.78835,2029.1,2029.0,3.99618]
[1742438134979,0.78834,2029.2,2029.1,0.78834]
[1742438135279,0.78834,2029.2,2029.1,1.3158]
[1742438136173,0.78835,2029.1,2029.0,3.2078]
[1742438136381,0.78843,2028.9,2028.8,1.3158]
[1742438136766,7.29699,2029.1,2028.7,4.00368649]
[1742438136972,2.18797,2028.8,2028.7,3.21520649]
[1742438137980,2.18797,2028.8,2028.7,4.00370649]
[1742438138176,1.3995,2028.8,2028.7,4.00370649]
[1742438138380,1.3995,2028.8,2028.7,5.30130649]
[1742438138773,2.18797,2028.8,2028.7,5.30130649]
[1742438138973,1.3995,2028.8,2028.7,5.30130649]
[1742438139373,2.18797,2028.8,2028.7,5.30130649]
[1742438139579,1.3995,2028.8,2028.7,5.30130649]
[1742438140080,2.18797,2028.8,2028.7,5.30130649]
[1742438140878,2.18797,2028.8,2028.7,4.51280649]
[1742438141082,2.18797,2028.8,2028.7,5.30130649]
[1742438141775,1.3995,2028.8,2028.7,5.30130649]
[1742438141981,0.78843,2028.9,2028.8,0.78844]
[1742438142381,2.07732,2029.0,2028.8,0.78844]
[1742438142581,2.07732,2029.0,2028.9,1.3593]
[1742438142981,2.07732,2029.0,2028.9,2.14773]
[1742438143171,2.07732,2029.0,2028.9,1.3593]
[1742438143375,1.2889,2029.0,2028.9,2.14773]
[1742438144673,5.96,2029.4,2028.9,3.33036]
[1742438144885,1.4082,2029.3,2029.2,0.78831]
[1742438145178,1.4082,2029.3,2029.2,3.99611]
[1742438145379,2.19648,2029.3,2029.2,3.99611]
[1742438145776,1.4082,2029.3,2029.2,5.32401]
[1742438146079,5.96,2029.4,2029.3,0.78827]
[1742438147077,7.3673,2029.4,2029.3,0.78827]
[1742438148475,7.3673,2029.4,2029.2,5.32398]
[1742438148476,1.4073,2029.4,2029.2,5.32398]
[1742438148681,0.78827,2029.3,2029.2,3.2078]
[1742438150275,0.6941,2029.6,2029.2,3.2078]
[1742438150585,2.84939,2029.6,2029.5,3.2078]
[1742438150978,2.84939,2029.6,2029.5,3.99599]
[1742438151175,1.3671,2029.6,2029.5,3.99599]
[1742438151580,1.3671,2029.6,2029.5,5.28829]
[1742438155480,3.2078,2030.1,2029.7,0.7881]
[1742438155684,3.2078,2030.1,2029.5,7.7421]
[1742438155685,2.7004,2030.0,2029.6,3.242]
[1742438155881,0.78806,2029.9,2029.7,1.3175]
[1742438156087,0.78806,2029.9,2029.7,2.10558]
[1742438156088,1.351,2029.8,2029.7,2.10558]
[1742438156488,2.13908,2029.8,2029.7,2.10558]
[1742438156788,1.351,2029.8,2029.7,2.10558]
[1742438158597,2.13908,2029.8,2029.7,5.31338]
[1742438158794,2.13908,2029.8,2029.7,3.2078]
[1742438160693,0.78819,2029.5,2029.4,0.6801]
[1742438160898,0.78819,2029.5,2029.3,8.53794]
[1742438160899,0.78823,2029.5,2029.3,8.53794]
[1742438161088,2.16773,2029.4,2029.3,4.5087]
[1742438161401,2.16773,2029.4,2029.3,3.2078]
[1742438162086,2.16773,2029.4,2029.3,3.99607]
[1742438162291,2.16773,2029.4,2029.3,3.2078]
[1742438164699,2.16773,2029.4,2029.3,4.542]
[1742438165287,1.3795,2029.4,2029.3,5.33027]
[1742438165492,2.10856,2029.6,2029.4,0.7882]
[1742438165798,1.2901,2029.5,2029.4,1.4739]
[1742438166594,1.2901,2029.5,2029.4,2.11202988]
[1742438167004,4.5792,2029.8,2029.4,1.32382988]
[1742438167204,1.3546,2029.6,2029.5,0.78816]
[1742438167701,1.3546,2029.6,2029.5,1.42628988]
[1742438168799,4.5792,2029.8,2029.5,1.42628988]
[1742438168800,0.6396,2029.8,2029.7,0.78812]
[1742438169097,0.00740649,2030.0,2029.8,0.78804]
[1742438169300,0.00740649,2030.0,2029.7,0.78809]
[1742438169301,1.3546,2029.8,2029.7,0.78809]
[1742438169901,1.3546,2029.8,2029.7,1.42628709]
[1742438173602,2.14268,2029.8,2029.7,0.63819709]
[1742438173801,1.3546,2029.8,2029.7,1.42631709]
[1742438177595,1.3546,2029.8,2029.7,2.81191709]
[1742438180717,1.3546,2029.8,2029.7,1.42631709]
[1742438180908,1.3546,2029.8,2029.7,2.80351709]
[1742438181109,1.3546,2029.8,2029.7,2.16532]
[1742438181511,1.3546,2029.8,2029.7,2.80435088]
[1742438182305,0.00740649,2030.0,2029.7,3.98650088]
[1742438182608,2.13430649,2030.0,2029.9,0.78804]
[1742438182803,1.34630649,2030.0,2029.9,2.06644]
[1742438184604,2.13430649,2030.0,2029.9,2.06644]
[1742438185004,1.34630649,2030.0,2029.9,2.06644]
[1742438185209,2.13430649,2030.0,2029.9,2.06644]
[1742438185407,1.34630649,2030.0,2029.9,2.06644]
[1742438185608,2.13430649,2030.0,2029.9,2.06644]
[1742438186613,1.34630649,2030.0,2029.9,2.06644]
[1742438187308,2.13430649,2030.0,2029.9,2.06644]
[1742438187517,1.34630649,2030.0,2029.9,2.06644]
[1742438187711,2.13430649,2030.0,2029.9,2.06644]
[1742438188115,1.34630649,2030.0,2029.9,2.06644]
[1742438188317,2.13430649,2030.0,2029.9,2.06644]
[1742438188516,1.34630649,2030.0,2029.9,2.06644]
[1742438190520,2.13430649,2030.0,2029.9,2.06644]
[1742438191625,1.34630649,2030.0,2029.9,2.06644]
[1742438192123,1.34630649,2030.0,2029.9,2.70459906]
[1742438192518,2.13430649,2030.0,2029.9,2.70459906]
[1742438192711,2.13430649,2030.0,2029.9,2.06644]
[1742438195934,1.34630649,2030.0,2029.9,2.06644]
[1742438196132,1.34630649,2030.0,2029.9,2.70550889]
[1742438197221,2.13430649,2030.0,2029.9,2.70550889]
[1742438197624,1.34630649,2030.0,2029.9,2.70550889]
[1742438198132,2.13430649,2030.0,2029.9,2.70550889]
[1742438198535,2.13430649,2030.0,2029.9,0.63906889]
[1742438199032,2.13430649,2030.0,2029.8,3.99585]
[1742438199033,0.78804,2029.9,2029.8,3.99585]
[1742438199336,2.16284,2029.9,2029.8,3.99585]
[1742438199531,2.16284,2029.9,2029.8,4.63533416]
[1742438200828,5.40284,2029.9,2029.8,0.63948416]
[1742438201136,0.78808,2029.8,2029.7,0.00740649]
[1742438201330,3.42728,2029.8,2029.7,0.00740649]
[1742438202339,3.42728,2029.8,2029.7,0.64666723]
[1742438203727,3.42728,2029.8,2029.7,0.00740649]
[1742438205239,3.42728,2029.8,2029.7,1.35270649]
[1742438205745,3.42728,2029.8,2029.7,1.99174195]
[1742438206736,3.42728,2029.8,2029.7,0.64644195]
[1742438207342,3.42728,2029.8,2029.7,0.00740649]
[1742438208239,2.08718,2029.8,2029.7,1.28740649]
[1742438208441,2.08718,2029.8,2029.7,0.00740649]
[1742438208744,1.2991,2029.8,2029.7,0.79552649]
[1742438208932,2.08718,2029.8,2029.7,0.00740649]
[1742438209137,2.08718,2029.8,2029.7,1.45292649]
[1742438209138,1.2991,2029.8,2029.7,1.45292649]
[1742438209441,0.78806,2029.9,2029.7,0.66480649]
[1742438209646,1.4051,2029.9,2029.8,2.06808]
[1742438210144,0.79541649,2030.0,2029.9,0.78804]
[1742438210345,2.16091649,2030.0,2029.9,2.86354]
[1742438211034,1.37290649,2030.0,2029.9,2.86354]
[1742438211847,2.16090649,2030.0,2029.9,2.86354]
[1742438212049,2.16090649,2030.0,2029.9,2.0755]
[1742438212247,0.78804,2029.9,2029.8,3.2078]
[1742438212436,2.83104,2029.9,2029.8,1.3996]
[1742438212640,2.83104,2029.9,2029.8,2.03810337]
[1742438213442,2.043,2029.9,2029.8,2.82618337]
[1742438213649,2.15354,2029.9,2029.8,2.82618337]
[1742438213850,1.3655,2029.9,2029.8,2.82618337]
[1742438214148,1.3655,2029.9,2029.8,6.03398337]
[1742438214348,0.00740649,2030.0,2029.9,0.78804]
[1742438214546,0.79540649,2030.0,2029.9,2.84634]
[1742438214745,0.00740649,2030.0,2029.9,2.84634]
[1742438215049,1.32340649,2030.0,2029.9,2.84634]
[1742438215251,1.32340649,2030.0,2029.9,3.48484337]
[1742438215450,2.11140649,2030.0,2029.9,3.48484337]
[1742438215950,2.11140649,2030.0,2029.9,2.69680337]
[1742438216653,2.11140649,2030.0,2029.9,0.63850337]
[1742438217349,2.11140649,2030.0,2029.9,1.91680337]
[1742438217949,1.32340649,2030.0,2029.9,1.91680337]
[1742438218247,1.32340649,2030.0,2029.9,2.70484337]
[1742438220153,2.11140649,2030.0,2029.9,2.70484337]
[1742438220357,2.11140649,2030.0,2029.9,1.91680337]
[1742438220752,2.11140649,2030.0,2029.9,2.70484337]
[1742438221056,1.32340649,2030.0,2029.9,2.70484337]
[1742438221957,0.00740649,2030.0,2029.9,2.70484337]
[1742438222557,0.00740649,2030.0,2029.9,5.94484337]
[1742438222855,0.78788,2030.3,2030.2,0.7879]
[1742438223056,2.14235,2030.4,2030.3,0.78788]
[1742438223257,1.3545,2030.4,2030.3,0.78788]
[1742438223560,1.3545,2030.4,2030.2,1.9567]
[1742438223561,5.96,2030.6,2030.5,0.7878]
[1742438223859,6.7478,2030.6,2030.4,3.99561]
[1742438224059,0.7878,2030.5,2030.4,3.99561]
[1742438224260,6.74779,2030.6,2030.4,3.2078]
[1742438224446,5.96,2030.6,2030.4,3.2078]
[1742438224650,6.74778,2030.6,2030.5,0.7878]
[1742438224852,1.3545,2030.6,2030.5,2.0751]
[1742438225047,1.47225,2030.7,2030.5,2.0751]
[1742438225048,0.78766,2030.9,2030.8,0.78768]
[1742438225351,1.3224,2030.9,2030.8,0.78769]
[1742438225752,1.3224,2030.9,2030.8,2.13069]
[1742438226957,9.1678,2031.5,2030.8,1.343]
[1742438227151,1.3224,2031.3,2031.2,0.78753]
[1742438227564,1.3224,2031.3,2031.1,1.9906]
[1742438227861,2.10991,2031.3,2031.2,1.343]
[1742438228468,1.3224,2031.3,2031.2,1.343]
[1742438228650,2.10989,2031.3,2031.2,1.343]
[1742438228961,3.2078,2031.5,2031.4,0.78746]
[1742438229460,3.2078,2031.5,2031.3,4.02647]
[1742438229662,3.99522,2031.5,2031.4,1.3362]
[1742438229861,3.2078,2031.5,2031.4,1.3362]
[1742438230259,3.99522,2031.5,2031.4,1.3362]
[1742438230459,0.78742,2031.5,2031.4,1.3362]
[1742438230661,10.5229,2031.9,2031.4,1.3362]
[1742438231159,0.7874,2031.6,2031.4,1.3362]
[1742438231365,0.78742,2031.5,2031.4,1.3362]
[1742438232464,0.78742,2031.5,2031.3,6.4468]
[1742438232465,0.78746,2031.4,2031.3,3.2078]
[1742438232665,0.78761,2031.0,2030.9,1.32098789]
[1742438233164,0.78757,2031.2,2031.0,0.78761]
[1742438233365,0.78757,2031.2,2031.1,1.3136]
[1742438234165,0.78753,2031.2,2031.1,1.3136]
[1742438234363,4.02652,2031.3,2031.1,1.3136]
[1742438234553,0.78752,2031.3,2031.1,2.10115]
[1742438235061,2.14358,2031.4,2031.2,2.08603]
[1742438235266,2.14356,2031.4,2031.3,1.2985]
[1742438235764,0.6644,2031.4,2031.3,2.08599]
[1742438235965,10.6516,2031.6,2031.4,0.78746]
[1742438236159,10.5675,2031.6,2031.4,1.2985]
[1742438236358,0.78746,2031.4,2031.3,0.6427]
[1742438236557,0.78746,2031.4,2031.1,3.99535]
[1742438236558,10.5675,2031.6,2031.1,3.8974]
[1742438236767,0.78753,2031.2,2031.1,3.2078]
[1742438236967,0.78761,2031.1,2031.0,0.78761]
[1742438237365,0.78756,2031.2,2031.0,0.78761]
[1742438237866,0.78756,2031.2,2031.1,1.284]
[1742438238266,0.7876,2031.1,2030.9,0.79501789]
[1742438238464,1.4909,2031.1,2031.0,0.78761]
[1742438238657,0.7033,2031.1,2031.0,0.78761]